[Event "WYCC 2018 G14"]
[Site "Halkidiki"]
[Date "2018.10.21"]
[Round "3"]
[White "He, Emma"]
[Black "Tamrazyan, Gohar"]
[Result "1-0"]
[ECO "C06"]
[WhiteElo "1674"]
[BlackElo "1824"]
[Annotator "NA"]
[PlyCount "113"]
[EventDate "2018.10.20"]
[EventType "swiss"]
[EventCountry "GRE"]
[SourceTitle "playchess.com"]
[Source "ChessBase"]
[SourceQuality "1"]
[TimeControl "40/5400+30:1800+30"]

1. e4 {[%emt 0:00:00]} e6 {[%emt 0:00:00]} 2. d4 {[%emt 0:00:00]} d5 {[%emt 0:00:00]} 3. Nd2 {[%emt 0:00:00]} Nf6 {[%emt 0:00:00]} 4. e5 {[%emt 0:00:00]} Nfd7 {[%emt 0:00:00]} 5. Bd3 {[%emt 0:00:02]} c5 {[%emt 0:00:00]} 6. c3 {[%emt 0:00:09]} Nc6 {[%emt 0:00:00]} 7. Ne2 {[%emt 0:00:30]} cxd4 {[%emt 0:00:00]} 8. cxd4 {[%emt 0:00:18]} f6 {[%emt 0:00:04]} 9. exf6 {[%emt 0:01:31]} Nxf6 {[%emt 0:00:04]} 10. O-O {[%emt 0:01:58]} Bd6 {[%emt 0:01:15]} 11. Nf3 {[%emt 0:02:21]} O-O {[%emt 0:00:29]} 12. Re1 {[%emt 0:17:08]} Qc7 {[%emt 0:04:18]} 13. h3 {[%emt 0:05:34]} Bd7 {[%emt 0:14:20]} 14. Nc3 {[%emt 0:03:12]} a6 {[%emt 0:04:20]} 15. Be3 {[%emt 0:04:51]} e5 {[%emt 0:07:51]} 16. dxe5 {[%emt 0:02:26]} Nxe5 17. Be2 Bc6 {[%emt 0:06:22]} 18. Rc1 {[%emt 0:07:48]} Qf7 {[%emt 0:04:13]} 19. Nd4 {[%emt 0:07:34]} Bd7 {[%emt 0:22:16]} 20. Kh1 {[%emt 0:18:38]} b5 {[%emt 0:12:55]} 21. Rf1 {[%emt 0:03:57]} Qg6 {[%emt 0:06:13]} 22. Nf3 {[%emt 0:02:48]} Be6 {[%emt 0:01:36]} 23. Ng5 {[%emt 0:05:05]} Qe8 {[%emt 0:02:37]} 24. Nge4 {[%emt 0:00:13]} Nxe4 25. Nxe4 Be7 {[%emt 0:02:50]} 26. Nc5 {[%emt 0:01:54]} Bxc5 {[%emt 0:06:37]} 27. Bxc5 Rf7 28. b3 {[%emt 0:07:03]} Qd7 {[%emt 0:01:16]} 29. Qd4 {[%emt 0:04:26]} Ng6 {[%emt 0:01:37]} 30. Bg4 {[%emt 0:04:19]} Bxg4 {[%emt 0:01:27]} 31. Qxg4 {[%emt 0:00:08]} Qxg4 {[%emt 0:00:18]} 32. hxg4 {[%emt 0:00:01]} Nf4 {[%emt 0:01:27]} 33. Be3 {[%emt 0:00:56]} Ne6 {[%emt 0:01:18]} 34. Rc6 {[%emt 0:01:16]} Rf6 {[%emt 0:00:39]} 35. Rd1 {[%emt 0:00:40]} Rd8 {[%emt 0:00:02]} 36. f3 {[%emt 0:00:34]} a5 {[%emt 0:00:43]} 37. Kg1 {[%emt 0:00:24]} d4 {[%emt 0:00:05]} 38. Bc1 {[%emt 0:00:13]} d3 {[%emt 0:00:22]} 39. Kf2 {[%emt 0:00:24]} Nd4 {[%emt 0:01:04]} 40. Rxf6 {[%emt 0:00:00]} gxf6 {[%emt 0:00:00]} 41. Rxd3 {[%emt 0:03:56]} Ne6 {[%emt 0:01:26]} 42. Rxd8+ {[%emt 0:00:43]} Nxd8 {[%emt 0:00:02]} 43. Ke3 {[%emt 0:02:15]} Nc6 {[%emt 0:03:24]} 44. a4 {[%emt 0:01:30]} bxa4 {[%emt 0:04:15]} 45. bxa4 {[%emt 0:00:10]} Ne5 {[%emt 0:01:21]} 46. Kd4 {[%emt 0:02:29]} Kf7 {[%emt 0:00:01]} 47. Bd2 {[%emt 0:01:01]} Kg6 {[%emt 0:03:09]} 48. Kc5 {[%emt 0:03:10]} h5 {[%emt 0:02:34]} 49. gxh5+ {[%emt 0:02:41]} Kxh5 {[%emt 0:00:52]} 50. Kb5 {[%emt 0:03:27]} Nd3 {[%emt 0:05:37]} 51. Kxa5 {[%emt 0:01:18]} Nc5 {[%emt 0:00:52]} 52. Kb5 {[%emt 0:00:32]} Nxa4 {[%emt 0:00:06]} 53. Kxa4 {[%emt 0:00:10]} Kh4 {[%emt 0:01:10]} 54. Bf4 {[%emt 0:00:08]} Kh5 {[%emt 0:00:38]} 55. Kb4 {[%emt 0:00:11]} Kg6 {[%emt 0:00:05]} 56. Kc4 {[%emt 0:00:08]} f5 {[%emt 0:00:33]} 57. Kd4 {[%emt 0:00:08]} 1-0

[Event "WYCC 2018 G14"]
[Site "Halkidiki"]
[Date "2018.10.21"]
[Round "3"]
[White "Kong, Sydney"]
[Black "Jaufarally, Nadia"]
[Result "0-1"]
[ECO "B35"]
[WhiteElo "1659"]
[BlackElo "1810"]
[Annotator "NA"]
[PlyCount "88"]
[EventDate "2018.10.20"]
[EventType "swiss"]
[EventCountry "GRE"]
[SourceTitle "playchess.com"]
[Source "ChessBase"]
[SourceQuality "1"]
[TimeControl "40/5400+30:1800+30"]

1. e4 {[%emt 0:00:00]} c5 {[%emt 0:00:00]} 2. Nf3 {[%emt 0:00:00]} g6 {[%emt 0:00:00]} 3. d4 {[%emt 0:00:00]} cxd4 {[%emt 0:00:00]} 4. Nxd4 {[%emt 0:00:00]} Nc6 {[%emt 0:00:29]} 5. Nc3 {[%emt 0:00:00]} Bg7 {[%emt 0:00:09]} 6. Be3 {[%emt 0:00:01]} Nf6 {[%emt 0:00:17]} 7. Bc4 {[%emt 0:00:11]} O-O {[%emt 0:01:33]} 8. Bb3 {[%emt 0:00:25]} Re8 {[%emt 0:01:47]} 9. f3 {[%emt 0:02:40]} e6 {[%emt 0:00:48]} 10. Qd2 {[%emt 0:03:52]} d5 {[%emt 0:00:57]} 11. exd5 {[%emt 0:02:20]} Nxd5 {[%emt 0:01:04]} 12. Nxd5 {[%emt 0:04:36]} Nxd4 {[%emt 0:00:33]} 13. Nc3 {[%emt 0:06:34]} Nxb3 {[%emt 0:01:07]} 14. axb3 {[%emt 0:01:01]} a6 {[%emt 0:09:06]} 15. O-O-O {[%emt 0:09:36]} Qc7 {[%emt 0:20:26]} 16. Ne4 {[%emt 0:08:50]} b5 {[%emt 0:15:59]} 17. Bh6 {[%emt 0:05:49]} Bb7 {[%emt 0:08:27]} 18. Bxg7 {[%emt 0:05:52]} Kxg7 {[%emt 0:01:01]} 19. h4 {[%emt 0:08:31]} Red8 {[%emt 0:10:03]} 20. Qg5 {[%emt 0:04:30]} Bxe4 {[%emt 0:02:28]} 21. fxe4 {[%emt 0:00:09]} Rac8 {[%emt 0:01:27]} 22. c3 {[%emt 0:01:58]} h6 {[%emt 0:02:14]} 23. Qe3 {[%emt 0:02:59]} a5 {[%emt 0:05:29]} 24. Rhf1 {[%emt 0:04:18]} b4 {[%emt 0:04:18]} 25. Rxd8 {[%emt 0:02:08]} Rxd8 {[%emt 0:00:11]} 26. Kb1 {[%emt 0:00:31]} Qd7 {[%emt 0:08:17]} 27. Qf4 {[%emt 0:03:17]} bxc3 {[%emt 0:02:02]} 28. Qf6+ {[%emt 0:01:13]} Kg8 {[%emt 0:00:12]} 29. bxc3 {[%emt 0:01:19]} Rb8 {[%emt 0:03:04]} 30. Kc2 {[%emt 0:00:44]} Qb7 {[%emt 0:00:16]} 31. Kc1 {[%emt 0:00:12]} Qc7 {[%emt 0:00:35]} 32. Kc2 {[%emt 0:01:28]} Qb7 {[%emt 0:00:39]} 33. Kd2 {[%emt 0:00:29]} Qd7+ {[%emt 0:00:23]} 34. Kc1 {[%emt 0:01:03]} Rxb3 {[%emt 0:00:43]} 35. Kc2 {[%emt 0:01:12]} Rb7 {[%emt 0:00:28]} 36. Ra1 {[%emt 0:01:42]} Qc7 {[%emt 0:00:46]} 37. h5 {[%emt 0:00:17]} Qg3 {[%emt 0:00:35]} 38. hxg6 {[%emt 0:01:18]} Qxg2+ {[%emt 0:00:12]} 39. Kd3 {[%emt 0:00:05]} Rd7+ {[%emt 0:00:13]} 40. Ke3 {[%emt 0:00:00]} Qd2+ {[%emt 0:00:00]} 41. Kf3 {[%emt 0:00:20]} Rd3+ {[%emt 0:00:40]} 42. Kg4 {[%emt 0:00:07]} Qg2+ {[%emt 0:00:12]} 43. Kf4 {[%emt 0:00:56]} Rf3+ {[%emt 0:00:15]} 44. Ke5 {[%emt 0:00:13]} Rxf6 {[%emt 0:00:19]} 0-1

[Event "WYCC 2018 G14"]
[Site "Halkidiki"]
[Date "2018.10.21"]
[Round "3"]
[White "Figueroa Bernal, Julia Dennis"]
[Black "Dylag, Emilia"]
[Result "0-1"]
[ECO "B12"]
[WhiteElo "1650"]
[BlackElo "2059"]
[Annotator "NA"]
[PlyCount "68"]
[EventDate "2018.10.20"]
[EventType "swiss"]
[EventCountry "GRE"]
[SourceTitle "playchess.com"]
[Source "ChessBase"]
[SourceQuality "1"]
[TimeControl "40/5400+30:1800+30"]

1. e4 {[%emt 0:00:00]} c6 {[%emt 0:00:00]} 2. d4 {[%emt 0:00:00]} d5 {[%emt 0:00:00]} 3. e5 {[%emt 0:00:00]} c5 {[%emt 0:00:00]} 4. dxc5 {[%emt 0:00:09]} Nc6 {[%emt 0:00:11]} 5. Nf3 {[%emt 0:00:21]} Bg4 {[%emt 0:00:44]} 6. c3 {[%emt 0:09:47]} e6 {[%emt 0:02:42]} 7. b4 {[%emt 0:01:05]} Nge7 {[%emt 0:07:45]} 8. Bf4 {[%emt 0:08:10]} Ng6 {[%emt 0:03:46]} 9. Bg3 {[%emt 0:00:22]} Bxf3 {[%emt 0:08:17]} 10. Qxf3 {[%emt 0:03:37]} Qg5 {[%emt 0:01:39]} 11. Nd2 {[%emt 0:02:44]} Ngxe5 {[%emt 0:01:33]} 12. Qe2 {[%emt 0:03:27]} Ng6 {[%emt 0:06:07]} 13. Qb5 {[%emt 0:02:13]} Qe7 {[%emt 0:08:27]} 14. h4 {[%emt 0:02:31]} e5 {[%emt 0:06:24]} 15. Qa4 {[%emt 0:01:50]} Qd7 {[%emt 0:06:16]} 16. Nf3 {[%emt 0:02:17]} f6 {[%emt 0:03:10]} 17. Rd1 {[%emt 0:04:09]} Nge7 {[%emt 0:03:09]} 18. c4 {[%emt 0:05:29]} d4 {[%emt 0:02:43]} 19. Be2 {[%emt 0:10:32]} Nf5 {[%emt 0:02:03]} 20. Nd2 {[%emt 0:03:16]} Nxg3 {[%emt 0:10:23]} 21. fxg3 {[%emt 0:00:12]} e4 {[%emt 0:03:24]} 22. Nxe4 {[%emt 0:02:30]} Qe6 {[%emt 0:04:30]} 23. Nf2 {[%emt 0:01:21]} Kf7 {[%emt 0:03:22]} 24. Kf1 {[%emt 0:09:37]} Re8 {[%emt 0:00:53]} 25. Re1 {[%emt 0:00:49]} g6 {[%emt 0:01:23]} 26. Nd3 {[%emt 0:02:36]} Qf5+ {[%emt 0:02:15]} 27. Kg1 {[%emt 0:00:58]} Rxe2 {[%emt 0:00:46]} 28. Rxe2 {[%emt 0:00:58]} Qxd3 {[%emt 0:00:08]} 29. Re1 {[%emt 0:05:09]} Bh6 {[%emt 0:04:47]} 30. Qb5 {[%emt 0:01:17]} Be3+ {[%emt 0:01:05]} 31. Kh2 {[%emt 0:00:17]} Rb8 {[%emt 0:00:48]} 32. Rhf1 {[%emt 0:00:44]} Qd2 {[%emt 0:01:23]} 33. Qa4 {[%emt 0:03:31]} Qxb4 {[%emt 0:00:59]} 34. Qc2 {[%emt 0:05:03]} Qxc5 {[%emt 0:00:37]} 0-1

[Event "WYCC 2018 G14"]
[Site "Halkidiki"]
[Date "2018.10.21"]
[Round "3"]
[White "Gregurkova, Nikola"]
[Black "Somton, Anita"]
[Result "1/2-1/2"]
[ECO "B18"]
[WhiteElo "1627"]
[BlackElo "1787"]
[Annotator "NA"]
[PlyCount "28"]
[EventDate "2018.10.20"]
[EventType "swiss"]
[EventCountry "GRE"]
[SourceTitle "playchess.com"]
[Source "ChessBase"]
[SourceQuality "1"]
[TimeControl "40/5400+30:1800+30"]

1. e4 {[%emt 0:00:00]} c6 {[%emt 0:00:00]} 2. d4 {[%emt 0:00:02]} d5 {[%emt 0:00:10]} 3. Nc3 {[%emt 0:00:40]} dxe4 {[%emt 0:00:18]} 4. Nxe4 {[%emt 0:00:31]} Bf5 {[%emt 0:00:13]} 5. Ng3 {[%emt 0:00:33]} Bg6 {[%emt 0:00:14]} 6. Nh3 {[%emt 0:01:36]} h6 {[%emt 0:03:43]} 7. Nf4 {[%emt 0:01:39]} Bh7 {[%emt 0:01:26]} 8. c3 {[%emt 0:08:42]} Nf6 {[%emt 0:03:21]} 9. Bc4 {[%emt 0:10:24]} b5 {[%emt 0:06:56]} 10. Bb3 {[%emt 0:07:07]} e6 {[%emt 0:03:27]} 11. O-O {[%emt 0:05:28]} Nd5 {[%emt 0:08:41]} 12. Re1 {[%emt 0:05:59]} Qd7 {[%emt 0:09:03]} 13. Qf3 {[%emt 0:05:56]} Nxf4 {[%emt 0:06:31]} 14. Bxf4 {[%emt 0:01:23]} Be7 {[%emt 0:01:35]} 1/2-1/2

[Event "WYCC 2018 G14"]
[Site "Halkidiki"]
[Date "2018.10.21"]
[Round "3"]
[White "Burdot, Clara"]
[Black "Gabbani, Sara"]
[Result "0-1"]
[ECO "C18"]
[WhiteElo "1472"]
[BlackElo "1764"]
[Annotator "NA"]
[PlyCount "82"]
[EventDate "2018.10.20"]
[EventType "swiss"]
[EventCountry "GRE"]
[SourceTitle "playchess.com"]
[Source "ChessBase"]
[SourceQuality "1"]
[TimeControl "40/5400+30:1800+30"]

1. e4 {[%emt 0:00:00]} e6 {[%emt 0:00:00]} 2. d4 {[%emt 0:00:00]} d5 {[%emt 0:00:00]} 3. Nc3 {[%emt 0:00:00]} Bb4 {[%emt 0:00:24]} 4. e5 {[%emt 0:00:13]} c5 {[%emt 0:00:07]} 5. a3 {[%emt 0:00:06]} Bxc3+ {[%emt 0:00:03]} 6. bxc3 {[%emt 0:00:12]} Ne7 {[%emt 0:00:30]} 7. Bg5 {[%emt 0:04:54]} Qc7 {[%emt 0:04:28]} 8. Nf3 {[%emt 0:02:26]} cxd4 {[%emt 0:01:14]} 9. cxd4 {[%emt 0:01:48]} h6 {[%emt 0:04:22]} 10. Bxe7 {[%emt 0:06:11]} Qxe7 {[%emt 0:01:09]} 11. Bd3 {[%emt 0:01:33]} Nc6 {[%emt 0:01:50]} 12. O-O O-O {[%emt 0:03:05]} 13. c3 {[%emt 0:04:12]} Bd7 {[%emt 0:05:04]} 14. Bc2 {[%emt 0:02:22]} f5 {[%emt 0:06:02]} 15. exf6 {[%emt 0:04:45]} Rxf6 {[%emt 0:00:18]} 16. Qd3 {[%emt 0:04:23]} g5 {[%emt 0:01:38]} 17. h4 {[%emt 0:03:43]} g4 {[%emt 0:02:59]} 18. Ne5 {[%emt 0:02:07]} Nxe5 {[%emt 0:02:37]} 19. dxe5 {[%emt 0:00:26]} Rff8 {[%emt 0:00:38]} 20. Qg6+ {[%emt 0:08:50]} Qg7 {[%emt 0:00:22]} 21. Rac1 {[%emt 0:06:03]} Rac8 {[%emt 0:03:12]} 22. Qxg7+ {[%emt 0:01:56]} Kxg7 {[%emt 0:00:08]} 23. Bd3 {[%emt 0:00:21]} Be8 {[%emt 0:01:26]} 24. c4 {[%emt 0:02:08]} Bc6 {[%emt 0:09:34]} 25. f4 {[%emt 0:06:45]} gxf3 {[%emt 0:01:34]} 26. gxf3 {[%emt 0:00:32]} dxc4 {[%emt 0:02:21]} 27. Rxc4 {[%emt 0:01:48]} Bd5 {[%emt 0:02:13]} 28. Rg4+ {[%emt 0:02:15]} Kf7 {[%emt 0:01:00]} 29. f4 {[%emt 0:04:26]} Rg8 {[%emt 0:06:56]} 30. Rxg8 {[%emt 0:03:30]} Rxg8+ {[%emt 0:00:32]} 31. Kh2 {[%emt 0:01:06]} Rg2+ {[%emt 0:01:10]} 32. Kh3 {[%emt 0:00:29]} Rd2 {[%emt 0:00:44]} 33. Bb5 {[%emt 0:03:10]} Bg2+ {[%emt 0:01:20]} 34. Kg3 {[%emt 0:00:16]} Bxf1 {[%emt 0:00:14]} 35. Bxf1 {[%emt 0:00:06]} Ra2 {[%emt 0:01:28]} 36. Kg4 {[%emt 0:00:13]} Rxa3 {[%emt 0:01:37]} 37. Kh5 {[%emt 0:01:56]} Rf3 {[%emt 0:01:52]} 38. Be2 {[%emt 0:00:55]} Rxf4 {[%emt 0:00:51]} 39. Kxh6 {[%emt 0:00:20]} Rxh4+ {[%emt 0:00:39]} 40. Bh5+ {[%emt 0:00:00]} Rxh5+ {[%emt 0:00:00]} 41. Kxh5 {[%emt 0:00:26]} a5 {[%emt 0:00:08]} 0-1

[Event "WYCC 2018 G14"]
[Site "Halkidiki"]
[Date "2018.10.22"]
[Round "4"]
[White "Ning, Kaiyu"]
[Black "Kamalidenova, Meruert"]
[Result "1-0"]
[ECO "E71"]
[WhiteElo "2217"]
[BlackElo "1999"]
[Annotator "NA"]
[PlyCount "91"]
[EventDate "2018.10.20"]
[EventType "swiss"]
[EventCountry "GRE"]
[SourceTitle "playchess.com"]
[Source "ChessBase"]
[SourceQuality "1"]
[TimeControl "40/5400+30:1800+30"]

1. d4 {[%emt 0:00:00]} Nf6 {[%emt 0:00:00]} 2. c4 {[%emt 0:00:00]} g6 {[%emt 0:00:00]} 3. Nc3 {[%emt 0:00:00]} Bg7 {[%emt 0:00:02]} 4. e4 {[%emt 0:00:00]} d6 {[%emt 0:00:09]} 5. h3 {[%emt 0:00:00]} O-O {[%emt 0:00:08]} 6. Nf3 {[%emt 0:00:01]} e5 {[%emt 0:00:22]} 7. d5 {[%emt 0:00:07]} a5 {[%emt 0:00:29]} 8. Be3 {[%emt 0:00:06]} Na6 {[%emt 0:00:36]} 9. Nd2 {[%emt 0:00:24]} Nd7 {[%emt 0:01:10]} 10. g4 {[%emt 0:01:28] E90: King's Indian: Classical: Early deviations and 6 h3} Ndc5 {[%emt 0:01:38]} 11. a3 {[%emt 0:07:05]} Bd7 {[%emt 0:01:50]} 12. h4 {[%emt 0:04:57]} (12. Rg1 Kh8 13. g5 f5 14. gxf6 Qxf6 15. Qe2 a4 16. Rg3 h6 17. O-O-O {½-½ (17) Nisipeanu,L (2659)-Nyzhnyk,I (2583) Konya 2011}) 12... c6 {[%emt 0:04:46]} 13. h5 {[%emt 0:03:46] [#]} g5 $146 {[%emt 0:05:56]} ({Predecessor:} 13... a4 14. Qf3 f5 15. hxg6 fxg4 16. Qg3 hxg6 17. Be2 {1-0 (32) Zakaryan,D (2420)-Iljiushenok,I (2512) Taganrog 2018}) 14. f3 {[%emt 0:00:47]} h6 {[%emt 0:01:31]} 15. b3 {[%emt 0:09:19]} cxd5 {[%emt 0:09:14]} 16. cxd5 {[%emt 0:00:06]} Qc7 {[%emt 0:06:20]} 17. Kf2 {[%emt 0:03:01]} Rfb8 {[%emt 0:02:42]} 18. Nb5 {[%emt 0:03:39]} Qb6 {[%emt 0:04:36]} 19. a4 {[%emt 0:01:38]} Bxb5 {[%emt 0:02:44]} 20. Bxb5 {[%emt 0:02:39]} Nb4 {[%emt 0:02:15]} 21. Qe2 {[%emt 0:05:40]} Rc8 {[%emt 0:04:27]} 22. Rhc1 {[%emt 0:01:38]} Bf8 {[%emt 0:03:16]} 23. Kg2 {[%emt 0:06:28]} Qd8 {[%emt 0:03:42]} 24. Rc3 {[%emt 0:05:52]} Be7 {[%emt 0:08:03]} 25. Nc4 {[%emt 0:00:53]} b6 {[%emt 0:04:41]} 26. Rac1 {[%emt 0:03:03]} Ra7 {[%emt 0:04:05]} 27. Bf2 {[%emt 0:02:28]} Rb8 {[%emt 0:01:53]} 28. Be1 {[%emt 0:01:44]} Qf8 {[%emt 0:02:41]} 29. Re3 {[%emt 0:00:57]} Nba6 {[%emt 0:01:52]} 30. Na3 {[%emt 0:01:46]} Nc7 $18 {[%emt 0:04:28]} 31. Bc6 {[%emt 0:02:42]} Bd8 {[%emt 0:01:19]} 32. Nb5 {[%emt 0:07:15]} Nxb5 {[%emt 0:01:37]} 33. axb5 {[%emt 0:05:06]} f6 {[%emt 0:02:39]} 34. Ra1 {[%emt 0:00:13]} Rf7 {[%emt 0:01:10]} 35. b4 {[%emt 0:00:33]} axb4 {[%emt 0:00:23]} 36. Bxb4 {[%emt 0:00:06]} Qe7 {[%emt 0:01:24]} 37. Rea3 {[%emt 0:00:23]} Rf8 {[%emt 0:01:11]} 38. Ra7 {[%emt 0:05:52]} Bc7 {[%emt 0:00:20]} 39. Bxc5 {[%emt 0:00:26]} bxc5 {[%emt 0:01:39]} 40. R1a6 {[%emt 0:00:00]} Qd8 {[%emt 0:00:00]} 41. Qa2 {[%emt 0:04:00]} Rb6 {[%emt 0:07:29]} 42. Rxb6 {[%emt 0:06:46]} Bxb6 {[%emt 0:00:54]} 43. Rd7 {[%emt 0:00:01]} Qb8 {[%emt 0:09:02]} 44. Rb7 {[%emt 0:00:06]} Qd8 {[%emt 0:00:37]} 45. Qa6 {[%emt 0:00:07]} Ba5 {[%emt 0:00:44]} 46. Qa7 {[%emt 0:00:53]} 1-0

[Event "WYCC 2018 G14"]
[Site "Halkidiki"]
[Date "2018.10.22"]
[Round "4"]
[White "Divya Deshmukh"]
[Black "Ehsani, Yassamin"]
[Result "1-0"]
[ECO "B42"]
[WhiteElo "2180"]
[BlackElo "1875"]
[Annotator "NA"]
[PlyCount "81"]
[EventDate "2018.10.20"]
[EventType "swiss"]
[EventCountry "GRE"]
[SourceTitle "playchess.com"]
[Source "ChessBase"]
[SourceQuality "1"]
[TimeControl "40/5400+30:1800+30"]

1. e4 {[%emt 0:00:00]} c5 {[%emt 0:00:00]} 2. Nf3 {[%emt 0:00:00]} e6 {[%emt 0:00:00]} 3. d4 {[%emt 0:00:00]} cxd4 {[%emt 0:00:00]} 4. Nxd4 {[%emt 0:00:00]} a6 {[%emt 0:00:00]} 5. Bd3 {[%emt 0:00:00]} Nf6 {[%emt 0:01:20]} 6. O-O {[%emt 0:00:00]} Qc7 {[%emt 0:01:18]} 7. Qe2 {[%emt 0:00:06]} d6 {[%emt 0:01:46]} 8. c4 {[%emt 0:00:27]} g6 {[%emt 0:02:27]} 9. Nc3 {[%emt 0:00:22]} Bg7 {[%emt 0:01:24]} 10. Be3 {[%emt 0:00:10]} O-O {[%emt 0:02:14]} 11. f4 {[%emt 0:02:15]} Nbd7 {[%emt 0:11:48]} 12. Rac1 {[%emt 0:03:24]} Re8 {[%emt 0:16:17] B42: Sicilian: Kan Variation: 5 Bd3} 13. b4 {[%emt 0:07:42]} b6 {[%emt 0:09:13]} 14. Nb3 {[%emt 0:03:39]} Bb7 {[%emt 0:13:32] [#]} 15. g4 $146 {[%emt 0:05:55]} ({Predecessor:} 15. Qf3 Rac8 16. a3 Qb8 17. Qh3 Qa8 18. Nd2 h5 19. Kh1 Ng4 20. Bg1 {0-1 (73) Mrazik,L (2518)-Brooks,I (2591) ICCF email 2006}) 15... d5 {[%emt 0:04:43]} 16. cxd5 {[%emt 0:24:00]} exd5 {[%emt 0:05:50]} 17. e5 {[%emt 0:09:32]} Nxe5 {[%emt 0:03:07]} 18. fxe5 {[%emt 0:02:22]} Qxe5 {[%emt 0:00:38]} 19. Bf4 {[%emt 0:06:39]} Qe6 {[%emt 0:01:15]} 20. Qxe6 {[%emt 0:00:18]} fxe6 {[%emt 0:00:24]} 21. Be5 {[%emt 0:00:22]} Nd7 {[%emt 0:05:25]} 22. Bxg7 {[%emt 0:01:16]} Kxg7 {[%emt 0:00:11]} 23. Ne2 {[%emt 0:02:09]} Rac8 $18 {[%emt 0:01:40]} 24. Nf4 {[%emt 0:06:57]} e5 {[%emt 0:03:45]} 25. Rxc8 {[%emt 0:00:09]} Rxc8 {[%emt 0:00:29]} 26. Ne6+ {[%emt 0:00:14]} Kg8 {[%emt 0:00:14]} 27. Rc1 {[%emt 0:00:06]} Rxc1+ {[%emt 0:02:10]} 28. Nxc1 {[%emt 0:00:09]} b5 {[%emt 0:06:08]} 29. Nb3 {[%emt 0:02:57]} Bc8 {[%emt 0:01:41]} 30. h3 {[%emt 0:05:40]} Kf7 {[%emt 0:00:37]} 31. Nc7 {[%emt 0:00:45]} Nb6 {[%emt 0:00:38]} 32. Nc5 {[%emt 0:00:39]} e4 {[%emt 0:01:07]} 33. Be2 {[%emt 0:01:31]} Kf6 {[%emt 0:00:45]} 34. N7xa6 {[%emt 0:01:22]} Bxa6 {[%emt 0:00:16]} 35. Nxa6 {[%emt 0:00:02]} d4 {[%emt 0:02:10]} 36. Bxb5 {[%emt 0:01:37]} d3 {[%emt 0:00:57]} 37. Nc5 {[%emt 0:04:02]} Ke5 {[%emt 0:00:23]} 38. Nd7+ {[%emt 0:05:41]} Kd4 {[%emt 0:00:46]} 39. Nxb6 {[%emt 0:00:39]} d2 {[%emt 0:00:27]} 40. Be2 {[%emt 0:00:00]} e3 {[%emt 0:00:00]} 41. b5 {[%emt 0:01:00] Kd5} 1-0

[Event "WYCC 2018 G14"]
[Site "Halkidiki"]
[Date "2018.10.22"]
[Round "4"]
[White "Garifullina, Leya"]
[Black "Moracchini, Margaux"]
[Result "1-0"]
[ECO "C42"]
[WhiteElo "2106"]
[BlackElo "1838"]
[Annotator "NA"]
[PlyCount "51"]
[EventDate "2018.10.20"]
[EventType "swiss"]
[EventCountry "GRE"]
[SourceTitle "playchess.com"]
[Source "ChessBase"]
[SourceQuality "1"]
[TimeControl "40/5400+30:1800+30"]

1. e4 e5 2. Nf3 Nf6 3. Nxe5 d6 4. Nf3 Nxe4 5. d4 d5 6. Bd3 Be7 7. O-O O-O 8. Re1 Bf5 9. Nbd2 Nd6 10. Nf1 Bxd3 11. Qxd3 Nd7 12. b3 Ne4 13. Bb2 c6 14. c4 Re8 15. cxd5 cxd5 16. Ne3 Nef6 17. Ne5 g6 18. f4 $14 Nb6 19. f5 Bb4 20. Rf1 Ne4 21. fxg6 fxg6 22. N3g4 Nd7 23. Nh6+ Kg7 24. Rf7+ Kxh6 25. Qh3+ Kg5 26. Nf3# 1-0

[Event "WYCC 2018 G14"]
[Site "Halkidiki"]
[Date "2018.10.22"]
[Round "4"]
[White "Wen, Yili"]
[Black "Bardorz, Jana"]
[Result "1-0"]
[ECO "A14"]
[WhiteElo "2083"]
[BlackElo "1810"]
[Annotator "NA"]
[PlyCount "117"]
[EventDate "2018.10.20"]
[EventType "swiss"]
[EventCountry "GRE"]
[SourceTitle "playchess.com"]
[Source "ChessBase"]
[SourceQuality "1"]
[TimeControl "40/5400+30:1800+30"]

1. Nf3 {[%emt 0:00:00]} d5 {[%emt 0:00:00]} 2. c4 {[%emt 0:00:00]} e6 {[%emt 0:00:56]} 3. g3 Nf6 {[%emt 0:00:46]} 4. Bg2 {[%emt 0:00:12]} Be7 {[%emt 0:01:33]} 5. O-O {[%emt 0:00:07]} O-O {[%emt 0:00:51]} 6. d4 {[%emt 0:00:05]} dxc4 {[%emt 0:00:42]} 7. Qc2 {[%emt 0:00:10]} a6 {[%emt 0:00:52]} 8. a4 {[%emt 0:00:07]} Nbd7 {[%emt 0:08:42]} 9. Rd1 {[%emt 0:04:35]} Nd5 {[%emt 0:07:52]} 10. e4 {[%emt 0:04:14]} Nb4 {[%emt 0:03:42]} 11. Qxc4 {[%emt 0:00:13]} b5 {[%emt 0:02:47]} 12. Qe2 {[%emt 0:01:10]} bxa4 {[%emt 0:06:41]} 13. Nc3 {[%emt 0:09:40]} Nb6 {[%emt 0:05:02]} 14. Nxa4 {[%emt 0:02:35]} Nxa4 {[%emt 0:00:55]} 15. Rxa4 {[%emt 0:00:03]} Bd7 {[%emt 0:01:06]} 16. Ra1 {[%emt 0:09:35]} Bb5 {[%emt 0:02:51]} 17. Qd2 {[%emt 0:00:27]} c5 $11 {[%emt 0:05:11]} 18. d5 {[%emt 0:26:35]} exd5 {[%emt 0:05:18]} 19. exd5 {[%emt 0:00:06]} Bd6 {[%emt 0:05:22]} 20. Qc3 {[%emt 0:02:08]} Re8 {[%emt 0:07:07]} 21. Be3 {[%emt 0:00:38]} Rc8 {[%emt 0:02:17]} 22. Bf1 {[%emt 0:05:42]} Bxf1 {[%emt 0:02:42]} 23. Kxf1 {[%emt 0:00:09]} Qd7 {[%emt 0:01:34]} 24. Qc4 {[%emt 0:03:45]} Qh3+ {[%emt 0:04:50]} 25. Kg1 {[%emt 0:08:47]} Bxg3 {[%emt 0:03:34]} 26. hxg3 {[%emt 0:00:05]} Rxe3 {[%emt 0:00:18]} 27. Qf4 {[%emt 0:00:05]} Rd3 {[%emt 0:04:58]} 28. d6 {[%emt 0:02:43]} Rxd1+ {[%emt 0:02:43]} 29. Rxd1 {[%emt 0:00:02]} Qd7 {[%emt 0:02:19]} 30. Ne5 {[%emt 0:00:46]} Qe6 {[%emt 0:00:46]} 31. d7 {[%emt 0:05:09]} Rd8 {[%emt 0:00:08]} 32. Rd6 {[%emt 0:01:24]} Qe7 {[%emt 0:03:29]} 33. Nc4 {[%emt 0:01:44]} h6 {[%emt 0:01:05]} 34. Qd2 {[%emt 0:00:28]} Nc6 {[%emt 0:04:40]} 35. Rxc6 {[%emt 0:00:50]} Rxd7 {[%emt 0:00:06]} 36. Rd6 {[%emt 0:00:16]} Rxd6 {[%emt 0:01:16]} 37. Nxd6 {[%emt 0:00:02]} Qf6 {[%emt 0:00:51]} 38. Nb7 {[%emt 0:03:01]} Qe5 {[%emt 0:01:04]} 39. Qc3 {[%emt 0:02:11]} Qe2 {[%emt 0:00:51]} 40. Nxc5 {[%emt 0:00:00]} Qd1+ {[%emt 0:00:00]} 41. Kg2 {[%emt 0:00:21]} Qd5+ {[%emt 0:00:56]} 42. f3 {[%emt 0:00:07]} Qd1 {[%emt 0:02:49]} 43. Qd3 {[%emt 0:05:01]} Qc1 {[%emt 0:00:44]} 44. Qd8+ {[%emt 0:02:17]} Kh7 {[%emt 0:00:08]} 45. Qd4 {[%emt 0:00:12]} Qc2+ {[%emt 0:01:33]} 46. Qf2 {[%emt 0:00:24]} Qc4 {[%emt 0:00:20]} 47. Ne4 {[%emt 0:03:09]} f5 {[%emt 0:01:57]} 48. Nc3 {[%emt 0:00:31]} f4 {[%emt 0:01:04]} 49. Qe2 {[%emt 0:00:10]} Qb3 {[%emt 0:01:43]} 50. gxf4 {[%emt 0:00:19]} Qf7 {[%emt 0:01:07]} 51. Qe4+ {[%emt 0:00:37]} Kh8 {[%emt 0:00:27]} 52. Qa8+ {[%emt 0:00:59]} Kh7 {[%emt 0:00:10]} 53. Qe4+ {[%emt 0:02:29]} Kh8 {[%emt 0:00:07]} 54. f5 {[%emt 0:00:18]} Qd7 {[%emt 0:01:38]} 55. Nd5 {[%emt 0:01:22]} Qb5 {[%emt 0:01:13]} 56. b4 {[%emt 0:01:15]} a5 {[%emt 0:01:42]} 57. Ne7 {[%emt 0:04:20]} Qa6 {[%emt 0:03:33]} 58. Ng6+ {[%emt 0:00:48]} Kh7 {[%emt 0:00:25]} 59. Qe8 {[%emt 0:00:04]} 1-0